bitfinex/quotes_ETHUSD_20240604
["timestamp","ask_amount","ask_price","bid_price","bid_amount"]
[1717480430226,2.2855,3766.4,3766.0,0.92263148]
[1717480430660,2.2855,3766.4,3766.1,0.92263148]
[1717480430804,2.2855,3766.4,3765.8,0.55615256]
[1717480431251,2.2855,3766.4,3765.9,1.47882243]
[1717480431423,2.2855,3766.4,3766.0,0.92266987]
[1717480431610,2.2855,3766.4,3766.1,0.92266987]
[1717480431806,2.2855,3766.4,3765.8,0.55615256]
[1717480432145,2.2855,3766.4,3765.9,0.55615256]
[1717480433772,2.2855,3766.4,3766.0,0.92266252]
[1717480433973,2.2855,3766.4,3766.1,0.92266252]
[1717480434273,2.2855,3766.4,3765.8,0.55615256]
[1717480434434,2.2855,3766.4,3765.8,1.47882035]
[1717480434635,2.2855,3766.4,3765.9,1.47882035]
[1717480434861,2.2855,3766.4,3766.0,0.92266779]
[1717480435055,2.2855,3766.4,3766.1,0.92266779]
[1717480435259,2.2855,3766.4,3765.8,0.55615256]
[1717480435471,2.2855,3766.4,3765.8,1.47881854]
[1717480435649,2.2855,3766.4,3765.9,1.47881854]
[1717480435982,2.2855,3766.4,3766.0,0.92266598]
[1717480436190,2.2855,3766.4,3766.1,0.92266598]
[1717480436364,2.2855,3766.4,3765.8,0.55615256]
[1717480437185,2.2855,3766.4,3765.8,1.47882801]
[1717480437472,2.2855,3766.4,3765.9,0.92267545]
[1717480437784,2.2855,3766.4,3766.0,0.92266742]
[1717480437940,2.2855,3766.4,3766.1,0.92266742]
[1717480438143,2.2855,3766.4,3765.8,0.55615256]
[1717480438689,2.2855,3766.4,3765.9,1.47882627]
[1717480438854,2.2855,3766.4,3766.0,0.92267371]
[1717480439067,2.2855,3766.4,3766.1,0.92267371]
[1717480439256,2.2855,3766.4,3765.9,0.55615256]
[1717480439978,2.2855,3766.4,3765.9,1.47881651]
[1717480440184,2.2855,3766.4,3766.0,0.92264095]
[1717480440343,2.2855,3766.4,3766.1,0.92264095]
[1717480440539,2.2855,3766.4,3766.2,0.92264095]
[1717480440745,2.2855,3766.4,3765.9,0.55615256]
[1717480443680,2.2855,3766.4,3766.0,1.47879024]
[1717480443979,2.2855,3766.4,3766.1,0.92263768]
[1717480444274,2.2855,3766.4,3766.2,0.92263768]
[1717480444482,2.2855,3766.4,3766.0,0.55615256]
[1717480444643,2.2855,3766.4,3765.8,0.83422884]
[1717480444644,2.2855,3766.4,3766.1,0.92262744]
[1717480444845,2.2855,3766.4,3766.2,0.92262744]
[1717480445065,2.2855,3766.4,3765.9,0.55615256]
[1717480445785,3.0885,3766.4,3765.9,0.55615256]
[1717480446079,3.0885,3766.4,3765.7,3.14084338]
[1717480446080,0.02838759,3766.3,3765.8,0.55615256]
[1717480446277,3.0885,3766.4,3765.8,0.55615256]
[1717480447472,2.65514,3766.3,3765.8,0.55615256]
[1717480447644,0.02827552,3766.2,3765.8,0.55615256]
[1717480448663,0.02827552,3766.2,3765.9,1.47882594]
[1717480448852,0.02827552,3766.2,3766.0,0.92267338]
[1717480449052,0.02827552,3766.2,3766.1,0.92267338]
[1717480449266,0.02827552,3766.2,3765.9,0.55615256]
[1717480449460,2.4067,3766.1,3766.0,0.92267338]
[1717480449665,2.43490911,3766.1,3766.0,0.92267338]
[1717480450162,2.43490911,3766.1,3765.8,0.55615256]
[1717480451204,2.43490911,3766.1,3765.8,1.47882594]
[1717480451376,2.65533,3766.0,3765.9,0.92267338]
[1717480451570,2.65533,3766.0,3765.6,0.83422884]
[1717480451571,2.65533,3766.0,3765.7,0.55615256]
[1717480451906,2.65533,3766.0,3765.8,0.92267338]
[1717480452199,2.65533,3766.0,3765.6,0.55615256]
[1717480452200,3.45833,3766.0,3765.6,0.55615256]
[1717480452367,0.02820911,3765.9,3765.7,0.92274194]
[1717480452575,3.45833,3766.0,3765.8,0.92274194]
[1717480452882,2.31170911,3765.9,3765.5,0.55615256]
[1717480453068,2.65548,3765.8,3765.4,0.55615256]
[1717480453273,2.65548,3765.8,3765.4,1.47890722]
[1717480453484,0.02820911,3765.7,3765.5,0.92275466]
[1717480453793,2.65548,3765.8,3765.6,0.92275466]
[1717480454092,2.65548,3765.8,3765.7,0.92275466]
[1717480454297,2.65548,3765.8,3765.4,0.55615256]
[1717480455774,2.65548,3765.8,3765.4,1.47892904]
[1717480456023,2.65548,3765.8,3765.5,0.92277648]
[1717480456177,2.65548,3765.8,3765.6,0.92277648]
[1717480456373,2.65548,3765.8,3765.4,0.55615256]
[1717480456922,2.65548,3765.8,3765.4,1.47893306]
[1717480457088,2.65548,3765.8,3765.5,0.9227805]
[1717480457289,2.65548,3765.8,3765.6,0.9227805]
[1717480457507,2.65548,3765.8,3765.4,0.55615256]
[1717480458595,2.65548,3765.8,3765.5,0.55615256]
[1717480460093,2.65548,3765.8,3765.5,1.47892182]
[1717480460301,2.2835,3765.9,3765.6,0.92276926]
[1717480460512,2.2835,3765.9,3765.7,0.92276926]
[1717480460824,2.2835,3765.9,3765.8,0.92276926]
[1717480461025,2.31154721,3765.9,3765.8,0.92276926]
[1717480461636,0.02804721,3765.9,3765.6,0.55615256]
[1717480461829,2.3881,3766.5,3765.8,0.803]
[1717480462006,0.02800569,3766.4,3765.9,0.92270085]
[1717480462332,0.02800569,3766.4,3766.0,1.47885341]
[1717480462538,0.02800569,3766.4,3766.1,0.92258726]
[1717480462684,2.65497,3766.6,3766.1,1.47873982]
[1717480462897,2.3781,3766.8,3766.1,1.47873982]
[1717480462898,0.02800569,3766.5,3766.2,3.2122]
[1717480463100,4.93329,3767.0,3766.3,0.92258726]
[1717480463303,0.02800569,3766.9,3766.3,0.92258726]
[1717480463816,0.02800569,3766.9,3766.4,0.92257736]
[1717480464003,0.02800569,3766.9,3766.2,2.4092]
[1717480464347,0.02800569,3766.9,3766.3,0.92257739]
[1717480465000,0.02800569,3766.9,3766.4,0.803]
[1717480465641,0.02800569,3766.9,3766.7,0.803]
[1717480465849,2.6541,3767.8,3766.8,3.18987012]
[1717480466061,0.02800569,3767.7,3766.9,1.72546354]
[1717480466369,0.02800569,3767.7,3767.0,0.92246354]
[1717480466707,2.6541,3767.8,3767.0,0.92246354]
[1717480467069,0.02800569,3767.7,3767.0,0.92246354]
[1717480469319,0.02800569,3767.7,3766.9,0.803]
[1717480473626,0.02800569,3767.7,3767.1,0.803]
[1717480478883,0.02800569,3767.7,3766.9,1.38344438]
[1717480479203,0.02800569,3767.7,3767.0,0.803]
[1717480496926,0.02800569,3767.7,3766.8,4.92205]
[1717480497224,2.4165,3767.6,3767.0,0.803]
[1717480497614,0.02857426,3767.5,3767.0,0.803]
[1717480497818,0.02857426,3767.5,3766.9,0.803]
[1717480502253,2.68285426,3767.5,3766.8,2.65475]
[1717480502468,2.4002,3767.4,3766.8,3.45775]
[1717480502751,2.3288,3767.2,3766.8,3.45775]
[1717480503066,2.3288,3767.2,3766.8,2.65475]
[1717480503231,0.02901003,3767.1,3766.8,2.65475]
[1717480504748,2.3288,3767.2,3766.8,2.65475]
[1717480505061,2.3288,3767.2,3766.6,1.93976981]
[1717480505362,2.3288,3767.2,3766.7,2.2815661]
[1717480505542,2.3288,3767.2,3766.8,0.92241354]
[1717480507310,2.3288,3767.2,3766.8,1.4785661]
[1717480508236,2.3288,3767.2,3766.9,1.4785661]
[1717480508446,2.3288,3767.2,3767.0,0.92241354]
[1717480508778,2.3288,3767.2,3767.1,0.92241354]
[1717480509116,2.3288,3767.2,3766.9,0.55615256]
[1717480509970,2.3288,3767.2,3766.9,1.4785661]
[1717480510276,2.3288,3767.2,3767.0,0.92241354]
[1717480510434,2.3288,3767.2,3767.1,0.92241354]
[1717480511126,2.3288,3767.2,3766.9,0.55615256]
[1717480511329,2.3288,3767.2,3767.0,0.55615256]
[1717480511768,2.3288,3767.2,3767.1,0.55615256]
[1717480513151,2.3288,3767.2,3767.1,0.92238091]
[1717480513537,2.3288,3767.2,3767.1,1.47853347]
[1717480513737,2.3288,3767.2,3767.1,0.55615256]
[1717480514472,2.3288,3767.2,3767.1,1.47853347]
[1717480514652,2.3288,3767.2,3767.1,0.55615256]
[1717480514857,2.3288,3767.2,3767.1,1.47853347]
[1717480515018,2.3288,3767.2,3767.1,0.55615256]
[1717480515226,2.3288,3767.2,3767.1,0.92238091]
[1717480515518,2.3288,3767.2,3767.0,0.55615256]
[1717480516060,2.3288,3767.2,3767.0,1.47853347]
[1717480516248,2.3288,3767.2,3767.1,1.47853347]
[1717480516588,2.3288,3767.2,3767.1,0.55615256]
[1717480516725,2.3288,3767.2,3767.0,1.47853347]
[1717480516925,2.3288,3767.2,3767.1,0.92238091]
[1717480517333,2.3288,3767.2,3767.1,0.92239365]
[1717480517541,2.3288,3767.2,3767.0,1.47854621]
[1717480517736,2.3288,3767.2,3767.1,0.92239365]
[1717480517965,2.3288,3767.2,3767.1,0.92239158]
[1717480518142,2.3288,3767.2,3767.1,0.55615256]
[1717480518663,2.3288,3767.2,3767.0,1.47854414]
[1717480519169,2.3288,3767.2,3767.1,0.9223932]
[1717480519520,2.3288,3767.2,3767.0,1.47854576]
[1717480520539,2.3288,3767.2,3767.1,0.9223932]
[1717480521143,2.3288,3767.2,3766.9,0.55615256]
[1717480521355,5.03938,3767.5,3766.9,1.47854576]
[1717480521536,0.02884822,3767.4,3767.1,0.55615256]
[1717480521742,0.02884822,3767.4,3767.2,0.55615256]
[1717480521939,5.03938,3767.5,3767.2,0.55615256]
[1717480522164,0.02884822,3767.4,3767.2,0.55615256]
[1717480522473,5.03938,3767.5,3767.2,0.55615256]
[1717480522682,5.03938,3767.5,3767.2,1.47854576]
[1717480522889,0.02884822,3767.4,3767.3,0.9223932]
[1717480523179,5.03938,3767.5,3767.2,0.55615256]
[1717480523527,0.02884822,3767.4,3767.2,0.55615256]
[1717480523727,5.03938,3767.5,3767.2,0.55615256]
[1717480523972,0.02884822,3767.4,3767.2,0.55615256]
[1717480524334,5.03938,3767.5,3767.2,0.55615256]
[1717480524543,0.02884822,3767.4,3767.2,0.55615256]
[1717480524864,5.03938,3767.5,3767.2,0.55615256]
[1717480525298,0.02878161,3767.4,3767.3,0.9223932]
[1717480525583,5.03938,3767.5,3767.2,1.47854576]
[1717480525881,5.03938,3767.5,3767.3,0.9223932]
[1717480526175,0.02878161,3767.4,3767.1,0.55615256]
[1717480526680,5.03938,3767.5,3767.1,0.55615256]
[1717480527039,0.02883969,3767.4,3767.2,0.92239994]
[1717480527343,0.02883969,3767.4,3767.0,0.55615256]
[1717480527746,0.02883969,3767.4,3767.0,1.47856219]
[1717480527933,0.02883969,3767.4,3767.1,0.92240963]
[1717480528136,0.02883969,3767.4,3767.2,0.92240963]
[1717480528339,0.02883969,3767.4,3767.3,0.92240963]
[1717480528491,0.02883969,3767.4,3767.0,1.47856219]
[1717480528698,0.02883969,3767.4,3767.1,1.47856219]
[1717480528918,0.02883969,3767.4,3767.2,0.92240963]
[1717480529122,0.02883969,3767.4,3767.3,0.92240963]
[1717480529821,0.02883969,3767.4,3767.2,1.47856219]
[1717480530360,0.02883969,3767.4,3767.3,0.92240963]
[1717480531343,0.02883969,3767.4,3767.1,0.55615256]
[1717480531503,0.02883969,3767.4,3767.3,0.92240963]
[1717480531703,0.02883969,3767.4,3767.1,0.55615256]
[1717480532029,0.02883969,3767.4,3767.2,1.47850054]
[1717480532231,0.02883969,3767.4,3767.3,0.92234798]
[1717480532744,5.78737,3767.8,3767.3,0.55615256]
[1717480532944,0.02883968,3767.4,3767.3,0.55615256]
[1717480533241,5.78737,3767.8,3767.3,0.55615256]
[1717480533446,0.02883968,3767.4,3767.3,1.47850054]
[1717480533649,5.78737,3767.8,3767.3,1.47850054]
[1717480533858,0.02883968,3767.4,3767.3,0.55615256]
[1717480534145,5.78737,3767.8,3767.2,1.47846855]
[1717480534347,5.78737,3767.8,3767.3,0.92231599]
[1717480534550,5.78737,3767.8,3767.2,0.55615256]
[1717480534551,0.02883968,3767.7,3767.4,0.92231599]
[1717480534720,0.02883968,3767.7,3767.5,0.92231599]
[1717480535042,0.02883968,3767.7,3767.2,0.55615256]
[1717480535201,0.02883968,3767.7,3767.2,1.47849175]
[1717480538037,0.02883968,3767.7,3767.3,1.47849175]
[1717480538225,0.02883968,3767.7,3767.4,0.92233919]
[1717480538431,0.02883968,3767.7,3767.5,0.92233919]
[1717480538626,0.02883968,3767.7,3767.6,0.92233919]
[1717480539345,0.02883968,3767.7,3767.3,1.47849175]
[1717480541350,0.02883968,3767.7,3767.4,0.92233919]
[1717480541549,0.02883968,3767.7,3767.2,0.55615256]
[1717480541753,0.02883968,3767.7,3767.1,1.47849676]
[1717480541922,0.02883968,3767.7,3767.2,0.9223446]
[1717480542335,0.02883968,3767.7,3767.3,1.47849716]
[1717480544157,0.02883968,3767.7,3767.4,0.9223446]
[1717480544450,0.02883968,3767.7,3767.5,0.9223446]
[1717480544656,0.02883968,3767.7,3767.6,0.9223446]
[1717480545312,0.02883968,3767.7,3767.4,0.55615256]
[1717480545515,0.02883968,3767.7,3767.4,1.47849716]
[1717480545768,0.02883968,3767.7,3767.5,0.9223446]
[1717480545979,0.02883968,3767.7,3767.6,0.9223446]
[1717480546131,0.02883968,3767.7,3767.4,0.55615256]
[1717480546335,0.02883968,3767.7,3767.4,1.47849716]
[1717480546535,0.02883968,3767.7,3767.5,0.9223446]
[1717480546877,0.02883968,3767.7,3767.6,0.92231105]
[1717480547441,0.02883968,3767.7,3767.4,0.55615256]
[1717480547641,0.02883968,3767.7,3767.4,1.47846361]
[1717480547869,0.02883968,3767.7,3767.5,0.92231105]
[1717480548086,0.02883968,3767.7,3767.6,0.92231105]
[1717480548245,0.02883968,3767.7,3767.4,0.55615256]
[1717480549266,0.02883968,3767.7,3767.5,0.92230935]
[1717480549573,0.02883968,3767.7,3767.6,0.92230935]
[1717480549979,0.02883968,3767.7,3767.4,0.55615256]
[1717480551485,0.02883968,3767.7,3767.5,0.92230935]
[1717480551640,0.02883968,3767.7,3767.6,0.92230935]
[1717480551839,0.02883968,3767.7,3767.4,1.47846191]
[1717480552077,0.02883968,3767.7,3767.5,0.92230935]
[1717480552373,0.02883968,3767.7,3767.6,0.92230935]
[1717480553741,0.02883968,3767.7,3767.4,0.55615256]
[1717480554143,0.02883968,3767.7,3767.3,1.47846191]
[1717480554758,0.02883968,3767.7,3767.4,0.92230482]
[1717480554960,0.02883968,3767.7,3767.5,0.92230482]
[1717480555156,0.02883968,3767.7,3767.6,0.92230482]
[1717480555356,0.02883968,3767.7,3767.4,0.55615256]
[1717480560590,0.02883968,3767.7,3767.3,1.47845738]
[1717480560895,3.195,3767.6,3767.4,0.92230482]
[1717480561069,3.195,3767.6,3767.5,0.92230482]
[1717480561264,3.195,3767.6,3767.1,0.55615256]
[1717480561663,5.84927,3767.6,3767.1,1.47855526]
[1717480562392,5.84927,3767.6,3767.1,0.55615256]
[1717480562570,5.84927,3767.6,3767.1,1.47855526]
[1717480562769,5.84927,3767.6,3767.2,0.9224027]
[1717480562983,5.84927,3767.6,3767.3,0.9224027]
[1717480563197,5.84927,3767.6,3767.1,0.55615256]
[1717480563689,5.84927,3767.6,3767.1,1.47856306]
[1717480566501,5.10345,3767.3,3767.2,0.9224105]
[1717480566797,5.10345,3767.3,3766.9,0.55615256]
[1717480566798,5.13233948,3767.3,3766.9,0.55615256]
[1717480567159,5.13233948,3767.3,3766.9,1.47860205]
[1717480567575,5.10345,3767.3,3767.0,0.92244949]
[1717480567779,0.02888948,3767.2,3767.1,0.92244949]
[1717480568002,5.10345,3767.3,3766.9,1.47860205]
[1717480568212,5.10345,3767.3,3767.0,0.92244949]
[1717480568535,2.4638,3767.0,3766.8,0.55615256]
[1717480568809,2.4638,3767.0,3766.9,0.92250645]
[1717480569155,2.4638,3767.0,3766.7,0.55615256]
[1717480570764,2.65456,3767.1,3766.7,0.55615256]
[1717480571167,2.65456,3767.1,3766.8,0.55615256]
[1717480572937,0.02888948,3767.0,3766.8,0.55615256]
[1717480573711,0.02888948,3767.0,3766.9,0.92250645]
[1717480574417,0.02888948,3767.0,3766.7,1.47865901]
[1717480574624,2.65456,3767.1,3766.8,0.92250645]
[1717480574785,0.02888948,3767.0,3766.9,0.92250645]
[1717480574980,0.02888948,3767.0,3766.7,0.55615256]
[1717480575300,2.65456,3767.1,3766.7,0.55615256]
[1717480577349,2.65456,3767.1,3766.8,1.47865901]
[1717480577512,2.65456,3767.1,3766.9,0.92250645]
[1717480577710,0.02884798,3767.0,3766.8,0.55615256]
[1717480578733,0.02884798,3767.0,3766.9,0.92243966]
[1717480579236,0.02884798,3767.0,3766.7,0.55615256]
[1717480579395,2.65456,3767.1,3766.7,0.55615256]
[1717480587361,2.65456,3767.1,3766.8,0.92246281]
[1717480587533,2.65456,3767.1,3766.9,0.92246281]
[1717480587732,0.02884798,3767.0,3766.6,0.55615256]
[1717480587930,0.02884798,3767.0,3766.6,1.47861569]
[1717480588133,2.65456,3767.1,3766.6,1.47861569]
[1717480590027,2.65456,3767.1,3766.7,0.92246313]
[1717480590228,2.65456,3767.1,3766.8,0.92246313]
[1717480590451,0.02884798,3767.0,3766.9,0.92246313]
[1717480590659,2.4527,3767.3,3766.9,0.92246313]
[1717480590822,0.02884798,3767.2,3766.6,0.55615256]
[1717480591023,2.4527,3767.3,3766.6,0.55615256]
[1717480591829,2.68338458,3767.2,3766.6,0.55615256]
[1717480592050,2.65452,3767.2,3766.6,0.55615256]
[1717480592780,2.65452,3767.2,3766.7,1.47861805]
[1717480592962,2.65452,3767.2,3766.8,0.92246549]
[1717480593124,2.65452,3767.2,3766.9,0.92246549]
[1717480593329,0.02886458,3767.1,3766.7,0.55615256]
[1717480593764,2.65452,3767.2,3766.7,0.55615256]
[1717480594130,2.65452,3767.2,3766.7,1.47861442]
[1717480594329,2.65452,3767.2,3766.8,0.92246186]
[1717480594587,2.65452,3767.2,3766.7,0.55615256]
[1717480594774,0.02886458,3767.1,3766.7,0.55615256]
[1717480594973,2.65452,3767.2,3766.7,1.47861442]
[1717480595132,2.65452,3767.2,3766.8,0.92246186]
[1717480595332,2.65452,3767.2,3766.9,0.92246186]
[1717480595534,0.02886458,3767.1,3766.7,0.55615256]
[1717480595946,2.65452,3767.2,3766.7,0.55615256]
[1717480598492,2.3148,3767.1,3766.7,1.47861431]
[1717480598653,2.65463,3767.0,3766.8,0.92246175]
[1717480598853,2.65463,3767.0,3766.7,0.55615256]
[1717480598854,2.65463,3767.0,3766.9,0.92246175]
[1717480599080,2.65463,3767.0,3766.7,0.55615256]
[1717480599295,2.65463,3767.0,3766.8,0.92250473]
[1717480599479,2.65463,3767.0,3766.9,0.92250473]
[1717480599887,2.65463,3767.0,3766.6,0.55615256]
[1717480601088,2.65463,3767.0,3766.6,1.47865734]
[1717480601401,2.65463,3767.0,3766.7,0.92250478]
[1717480601551,2.65463,3767.0,3766.8,0.92250478]
[1717480601749,2.65463,3767.0,3766.9,0.92250478]
[1717480601951,2.65463,3767.0,3766.6,0.55615256]
[1717480602201,2.65463,3767.0,3766.6,1.47865734]
[1717480603373,2.65463,3767.0,3766.7,1.47865734]
[1717480603568,2.65463,3767.0,3766.8,0.92250478]
[1717480603775,2.65463,3767.0,3766.9,0.92250478]
[1717480604279,2.65463,3767.0,3766.7,0.55615256]
[1717480606099,2.65463,3767.0,3766.7,1.47866414]
[1717480606267,2.65463,3767.0,3766.8,0.9225116]
[1717480606469,2.65463,3767.0,3766.9,0.9225116]
[1717480607196,2.65463,3767.0,3766.7,1.47866416]
[1717480608480,2.65463,3767.0,3766.8,0.9225116]
[1717480608693,2.65463,3767.0,3766.9,0.9225116]
[1717480608997,2.65463,3767.0,3766.7,1.47866416]
[1717480609185,2.65463,3767.0,3766.8,0.9225116]
[1717480609387,2.65463,3767.0,3766.9,0.9225116]
[1717480609607,2.65463,3767.0,3766.7,1.47866416]
[1717480610259,2.65463,3767.0,3766.8,0.9225116]
[1717480610874,2.4165,3766.8,3766.3,0.83617867]
[1717480611093,2.4002,3766.0,3765.8,0.83617867]
[1717480611262,2.4002,3766.0,3765.1,1.67202623]
[1717480611263,2.65583,3765.3,3765.1,0.83617867]
[1717480611461,2.65583,3765.3,3764.7,0.83617867]
[1717480611711,2.65583,3765.3,3764.5,1.1149049]
[1717480611712,2.65583,3765.3,3764.5,0.83617867]
[1717480611916,2.65583,3765.3,3764.1,3.23835824]
[1717480611917,3.45883,3765.3,3764.4,1.63917867]
[1717480612074,2.65599,3765.1,3764.4,0.83617867]
[1717480612270,2.65599,3765.1,3764.3,1.63917867]
[1717480612271,0.02834583,3765.0,3764.3,1.63917867]
[1717480612583,2.65599,3765.1,3764.3,1.63917867]
[1717480612584,2.65599,3765.1,3764.3,0.803]
[1717480612780,3.45899,3765.1,3764.3,0.803]
[1717480612983,2.65614,3764.9,3764.3,0.803]
[1717480613504,2.65614,3764.9,3764.0,2.464]
[1717480613505,0.02834583,3764.8,3764.0,3.30017867]
[1717480613810,2.65625,3764.7,3764.2,0.803]
[1717480616314,2.65625,3764.7,3764.3,0.803]
[1717480617413,2.65625,3764.7,3764.1,3.803]
[1717480617911,2.65625,3764.7,3763.6,1.10758529]
[1717480618090,2.65639,3764.5,3763.5,2.3463]
[1717480618285,0.803,3764.4,3763.5,2.3463]
[1717480618493,0.85315195,3764.4,3763.5,3.1493]
[1717480618798,0.803,3764.4,3763.5,3.1493]
[1717480619010,2.65655,3764.3,3763.5,2.3463]
[1717480619168,2.65655,3764.3,3763.6,0.803]
[1717480619575,0.02722484,3764.2,3763.6,0.803]
[1717480620473,0.02722484,3764.2,3763.2,0.0337434]
[1717480620724,2.65655,3764.3,3763.6,0.803]
[1717480620869,2.65668,3764.1,3763.2,3.0337434]
[1717480621077,0.02722484,3764.0,3763.4,0.803]
[1717480622280,0.02722484,3764.0,3763.2,3.0337434]
[1717480622477,0.02722484,3764.0,3763.4,0.803]
[1717480622681,0.02722484,3764.0,3763.2,3.0337434]
[1717480622881,0.02722484,3764.0,3763.3,0.803]
[1717480623118,2.65668,3764.1,3763.3,0.803]
[1717480623327,0.02705867,3763.9,3763.2,3.0337434]
[1717480623504,2.65668,3764.1,3763.2,0.0337434]
[1717480623708,2.65668,3764.1,3763.3,0.803]
[1717480623908,0.02705867,3764.0,3763.5,0.803]
[1717480625183,0.02705867,3764.0,3763.2,3.0337434]
[1717480625486,0.02705867,3764.0,3763.4,0.803]
[1717480625916,0.02705867,3764.0,3763.2,3.0337434]
[1717480626112,0.02705867,3764.0,3763.3,0.803]
[1717480626323,0.02705867,3764.0,3763.5,0.803]
[1717480626709,0.02705867,3764.0,3763.4,0.803]
[1717480627109,2.65668,3764.1,3763.4,0.803]
[1717480628324,2.65668,3764.1,3763.5,35.0]
[1717480628911,2.65668,3764.1,3763.4,0.803]
[1717480631468,2.65668,3764.1,3763.6,0.803]
[1717480631617,2.65668,3764.1,3763.9,0.803]
[1717480632240,2.65668,3764.1,3763.7,0.803]
[1717480632241,0.02705867,3764.0,3763.7,0.803]
[1717480632465,2.65668,3764.1,3763.7,0.803]
[1717480634408,2.65643,3764.5,3763.7,0.803]
[1717480638030,0.02675547,3764.4,3763.7,0.803]
[1717480638655,2.65643,3764.5,3763.7,0.803]
[1717480639365,2.65643,3764.5,3763.7,3.1669]
[1717480642215,3.243533,3764.5,3763.7,3.1669]
[1717480643417,0.02675547,3764.4,3763.7,3.1669]
[1717480645544,2.65654,3764.3,3763.7,2.3639]
[1717480646148,0.02675547,3764.2,3763.7,2.3639]
[1717480646657,2.3297,3764.0,3763.3,2.65722]
[1717480647161,0.02675547,3763.9,3763.3,3.46022]
[1717480648285,0.02675547,3763.9,3763.3,2.65722]
[1717480648799,0.02675547,3763.9,3763.3,3.46022]
[1717480651066,0.02675547,3763.9,3763.3,2.65722]
[1717480651305,0.02675547,3763.9,3763.2,3.0337434]
[1717480651306,0.02675547,3763.9,3763.4,0.803]
[1717480651619,0.02675547,3763.9,3763.2,0.0337434]
[1717480651620,2.6569,3763.8,3763.2,0.0337434]
[1717480652008,0.02638981,3763.7,3763.3,35.0]
[1717480652170,0.02638981,3763.7,3763.2,0.0337434]
[1717480652171,2.6569,3763.8,3763.2,0.0337434]
[1717480653709,0.02638981,3763.7,3763.2,0.0337434]
[1717480654095,2.65703,3763.6,3763.2,0.0337434]
[1717480654304,2.92537198,3763.6,3763.2,0.0337434]
[1717480654468,2.51638981,3763.5,3763.2,0.0337434]
[1717480656682,2.65717,3763.4,3763.2,0.0337434]
[1717480657090,0.02616953,3763.3,3763.2,0.0337434]
[1717480661035,2.65694,3763.8,3763.2,0.0337434]
[1717480661189,0.02593264,3763.3,3763.2,0.0337434]
[1717480661391,2.65694,3763.8,3763.2,0.0337434]
[1717480661627,0.02593264,3763.3,3763.2,0.0337434]
[1717480661830,2.65694,3763.8,3763.2,0.0337434]
[1717480662139,3.45994,3763.8,3763.2,0.0337434]
[1717480662465,0.02593264,3763.7,3763.2,0.0337434]
[1717480662954,4.95413,3763.6,3763.2,0.0337434]
[1717480663090,0.57830626,3763.5,3763.2,0.0337434]
[1717480663293,0.02597005,3763.4,3763.2,0.0337434]
[1717480666788,5.87354,3763.3,3763.2,0.0337434]
[1717480667250,5.89951005,3763.3,3763.2,0.0337434]
[1717480675255,5.09651005,3763.3,3763.2,0.0337434]
[1717480675427,6.40916106,3763.3,3763.2,0.0337434]
[1717480676019,5.60616106,3763.3,3763.2,0.0337434]
[1717480676218,6.40916106,3763.3,3763.2,0.0337434]
[1717480676636,5.60616106,3763.3,3763.2,0.0337434]
[1717480676833,6.40916106,3763.3,3763.2,0.0337434]
[1717480679030,12.06640106,3763.3,3763.2,0.0337434]
[1717480680062,11.26340106,3763.3,3763.2,0.0337434]
[1717480680239,12.06640106,3763.3,3763.2,0.0337434]
[1717480681169,12.64088679,3763.3,3763.2,0.0337434]
[1717480681980,12.06640106,3763.3,3763.2,0.0337434]
[1717480682663,12.06640106,3763.3,3763.2,3.4e-06]
[1717480682968,13.36640106,3763.3,3763.2,3.4e-06]
[1717480683172,16.02364106,3763.3,3763.2,3.4e-06]
[1717480686454,16.85811342,3763.3,3763.2,3.4e-06]
[1717480687437,16.08312714,3763.3,3763.2,3.4e-06]
[1717480688146,15.28012714,3763.3,3763.2,3.4e-06]
[1717480688469,16.08312714,3763.3,3763.2,3.4e-06]
[1717480689092,12.12588714,3763.3,3763.2,3.4e-06]
[1717480690480,9.71258714,3763.3,3763.2,3.4e-06]
[1717480690646,2.74269613,3763.3,3763.2,3.4e-06]
[1717480690846,3.48621005,3763.3,3763.2,3.4e-06]
[1717480691653,5.96391005,3763.3,3763.2,3.4e-06]
[1717480692058,8.96391005,3763.3,3763.2,3.4e-06]
[1717480694352,9.51391005,3763.3,3763.2,3.4e-06]
[1717480694688,10.73102106,3763.3,3763.2,3.4e-06]
[1717480696224,13.38826106,3763.3,3763.2,3.4e-06]
[1717480696371,13.20776106,3763.3,3763.2,3.4e-06]
[1717480696567,13.26724714,3763.3,3763.2,3.4e-06]
[1717480697020,14.01724714,3763.3,3763.2,3.4e-06]
[1717480697170,15.12987695,3763.3,3763.2,3.4e-06]
[1717480700519,16.45114272,3763.3,3763.2,3.4e-06]
[1717480701216,7.72446,3762.6,3762.5,9.4e-06]
[1717480701415,9.27746,3762.6,3762.5,9.4e-06]
[1717480701605,12.85216586,3762.6,3762.5,9.4e-06]
[1717480702579,13.95828928,3762.6,3762.5,9.4e-06]
[1717480703080,12.85216586,3762.6,3762.5,9.4e-06]
[1717480703280,14.38621199,3762.6,3762.5,9.4e-06]
[1717480705406,15.21515054,3762.6,3762.5,9.4e-06]
[1717480706438,15.21514303,3762.6,3762.5,9.4e-06]
[1717480706628,12.80614303,3762.6,3762.5,9.4e-06]
[1717480706832,12.05614303,3762.6,3762.5,9.4e-06]
[1717480707338,2.65851,3761.5,3761.4,8.53e-06]
[1717480707500,6.12002,3761.5,3761.4,8.53e-06]
[1717480707835,6.14413084,3761.5,3761.4,8.53e-06]
[1717480708029,5.68262084,3761.5,3761.4,8.53e-06]
[1717480708334,6.48562084,3761.5,3761.4,8.53e-06]
[1717480708686,5.68262084,3761.5,3761.4,8.53e-06]
[1717480708942,6.48562084,3761.5,3761.4,8.53e-06]
[1717480709239,7.13418292,3761.5,3761.4,8.53e-06]
[1717480710039,6.33118292,3761.5,3761.4,8.53e-06]
[1717480710753,6.33118292,3761.5,3761.1,0.00992034]
[1717480710894,2.65865,3761.3,3761.1,0.00992034]
[1717480711090,0.02355727,3761.2,3761.1,0.00992034]
[1717480711296,0.65663421,3761.2,3761.1,0.00992034]
[1717480711542,0.63307694,3761.2,3761.1,0.00992034]
[1717480711727,0.65663005,3761.2,3761.1,0.00992034]
[1717480712519,6.14263005,3761.2,3761.1,0.00992034]
[1717480712716,6.192782,3761.2,3761.1,0.00992034]
[1717480713368,9.81469582,3761.2,3761.1,0.00992034]
[1717480713649,10.56469582,3761.2,3761.1,0.00992034]
[1717480713829,8.21389582,3761.2,3761.1,0.00992034]
[1717480714038,7.46389582,3761.2,3761.1,0.00992034]
[1717480714198,6.14263005,3761.2,3761.1,0.00992034]
[1717480714903,4.95663005,3761.2,3761.1,3.4e-07]